bitfinex/quotes_SOLUSD_20251201
["timestamp","ask_amount","ask_price","bid_price","bid_amount"]
[1764560100436,3.5,127.03,127.01,13.16522918]
[1764560100937,3.5,127.03,127.02,12.44522918]
[1764560101462,3.5,127.03,127.02,13.16522918]
[1764560101636,3.5,127.03,127.02,12.44522918]
[1764560101831,7.87179523,127.04,127.02,0.72]
[1764560102051,11.37179523,127.04,127.01,12.44522918]
[1764560102250,16.308864,127.01,126.98,0.72]
[1764560102460,19.808864,127.01,126.98,13.16522918]
[1764560102754,27.68272793,127.01,126.99,12.44522918]
[1764560102958,3.5,127.01,127.0,12.44522918]
[1764560103160,3.5,127.01,127.0,13.16522918]
[1764560103460,27.55410084,127.03,127.0,13.16522918]
[1764560106159,11.37261955,127.03,127.02,12.44522918]
[1764560106748,11.37261955,127.03,126.98,7.87468545]
[1764560106949,11.37261955,127.03,127.01,12.44522918]
[1764560107747,11.37261955,127.03,127.01,13.16522918]
[1764560108360,11.37261955,127.03,127.0,12.44522918]
[1764560108361,12.09261955,127.03,127.0,12.44522918]
[1764560108757,12.09261955,127.03,127.01,12.44522918]
[1764560109063,11.37261955,127.03,127.01,12.44522918]
[1764560109259,12.09261955,127.03,127.0,12.44522918]
[1764560110246,11.37261955,127.03,127.0,12.44522918]
[1764560110448,3.5,127.03,127.01,13.16522918]
[1764560110656,3.5,127.03,127.02,12.44522918]
[1764560110850,11.37215618,127.03,127.02,12.44522918]
[1764560111163,0.72,127.08,127.02,74.66522918]
[1764560111368,12.44522918,127.07,127.02,61.5]
[1764560111553,28.75409318,127.05,127.01,12.44522918]
[1764560111867,3.5,127.04,127.01,12.44522918]
[1764560112041,3.5,127.04,127.02,12.44522918]
[1764560112246,3.5,127.04,127.02,0.72]
[1764560112452,3.5,127.04,127.03,12.44522918]
[1764560112854,11.37057965,127.06,127.03,13.16522918]
[1764560113052,3.5,127.06,127.05,12.44522918]
[1764560113366,3.5,127.07,127.05,12.44522918]
[1764560113546,3.5,127.07,127.06,12.44522918]
[1764560113953,3.5,127.07,127.03,61.5]
[1764560113954,16.66522918,127.07,127.03,61.5]
[1764560114159,0.72,127.06,127.03,73.94522918]
[1764560114369,8.59084834,127.06,127.03,73.94522918]
[1764560115154,13.16522918,127.05,126.98,0.72]
[1764560115359,3.5,127.04,127.01,12.44522918]
[1764560115549,4.22,127.04,127.01,12.44522918]
[1764560116278,7.87215618,127.03,127.0,12.44522918]
[1764560116448,8.59215618,127.03,126.99,8.5945729]
[1764560116650,8.59215618,127.03,127.0,12.44522918]
[1764560117254,7.87215618,127.03,127.0,12.44522918]
[1764560117458,7.87215618,127.03,127.0,13.16522918]
[1764560117661,19.67518141,127.07,127.02,12.44522918]
[1764560117865,11.36967813,127.07,127.04,12.44522918]
[1764560118153,11.36967813,127.07,127.05,12.44522918]
[1764560118579,12.08967813,127.07,127.04,12.44522918]
[1764560118877,11.36967813,127.07,127.04,12.44522918]
[1764560119174,3.5,127.07,127.01,8.80994492]
[1764560119354,3.5,127.07,127.06,12.44522918]
[1764560119556,3.5,127.09,127.06,12.44522918]
[1764560119776,4.22,127.09,127.06,12.44522918]
[1764560120679,3.5,127.09,127.06,12.44522918]
[1764560120852,4.22,127.09,127.06,12.44522918]
[1764560121054,0.72,127.08,127.05,61.5]
[1764560121255,0.72,127.08,127.05,73.94522918]
[1764560121760,12.44522918,127.06,127.02,12.44522918]
[1764560121964,3.5,127.05,127.01,73.94522918]
[1764560122164,3.5,127.05,127.01,74.66522918]
[1764560122165,4.22,127.05,127.01,74.66522918]
[1764560123255,7.87153652,127.04,127.01,74.66522918]
[1764560123855,8.59153652,127.04,127.01,61.5]
[1764560124162,7.87153652,127.04,127.01,74.66522918]
[1764560124675,7.87153652,127.04,127.01,13.16522918]
[1764560125082,7.87153652,127.04,127.02,12.44522918]
[1764560125978,7.87031367,127.06,127.03,12.44522918]
[1764560126160,7.87031367,127.06,127.04,12.44522918]
[1764560127579,7.87031367,127.06,127.03,13.14522918]
[1764560129967,8.53031367,127.06,127.03,13.14522918]
[1764560130580,39.99128659,127.06,127.02,12.44522918]
[1764560130764,16.60522918,127.05,127.01,12.44522918]
[1764560130963,16.60522918,127.05,127.0,74.64522918]
[1764560131171,13.10522918,127.04,127.0,74.64522918]
[1764560131372,3.5,127.03,127.0,73.94522918]
[1764560131667,4.16,127.03,127.0,61.5]
[1764560132182,4.16,127.03,127.0,73.94522918]
[1764560132366,4.16,127.03,127.0,61.5]
[1764560132567,7.87277594,127.02,127.0,61.5]
[1764560132867,20.97800512,127.02,127.0,61.5]
[1764560133069,4.16,127.01,126.98,73.94522918]
[1764560133475,4.16,127.01,126.97,12.44522918]
[1764560133780,4.16,127.01,126.97,74.64522918]
[1764560134484,16.60522918,127.01,126.97,74.64522918]
[1764560134672,8.53401574,127.0,126.97,73.94522918]
[1764560135169,8.53401574,127.0,126.97,61.5]
[1764560135365,8.53401574,127.0,126.96,13.14522919]
[1764560136175,7.87401574,127.0,126.97,0.7]
[1764560136469,11.37486732,126.99,126.97,0.7]
[1764560136682,11.37486732,126.99,126.97,13.14522918]
[1764560136882,0.66,127.04,126.98,13.14522918]
[1764560137097,3.5,127.03,127.0,12.44522918]
[1764560137491,13.10522918,127.02,126.98,73.94522918]
[1764560137684,13.10522918,127.02,126.98,74.64522918]
[1764560137885,0.66,127.01,126.98,61.5]
[1764560138087,3.5,127.0,126.97,12.44522918]
[1764560138285,3.5,127.0,126.97,13.14522918]
[1764560138586,8.53463579,126.99,126.96,12.44522919]
[1764560138970,8.53463579,126.99,126.96,13.14522919]
[1764560139480,11.37408887,127.0,126.97,13.14522918]
[1764560139668,12.03408887,127.0,126.97,13.14522918]
[1764560139870,11.37408887,127.0,126.97,13.14522918]
[1764560140290,12.03408887,127.0,126.96,12.44522919]
[1764560140497,12.03408887,127.0,126.96,13.14522919]
[1764560140991,12.03408887,127.0,126.97,12.44522918]
[1764560141682,31.05912824,127.0,126.96,13.14522919]
[1764560141889,0.66,126.99,126.96,12.44522919]
[1764560142496,0.66,126.99,126.96,13.14522919]
[1764560142698,7.87525594,126.98,126.96,1e-08]
[1764560142990,3.5,126.97,126.96,61.50000001]
[1764560143477,4.16,126.97,126.96,1e-08]
[1764560144391,16.60522918,126.97,126.96,1e-08]
[1764560144778,24.48110537,126.97,126.96,1e-08]
[1764560146802,43.51079584,126.97,126.95,1e-08]
[1764560146992,38.2240381,126.96,126.95,1e-08]
[1764560147508,21.9151741,126.96,126.95,1e-08]
[1764560147891,29.79167063,126.96,126.95,1e-08]
[1764560148790,17.34644145,126.96,126.95,1e-08]
[1764560148987,33.29167063,126.96,126.95,1e-08]
[1764560149384,24.48172571,126.96,126.95,1e-08]
[1764560149691,37.29058971,126.96,126.95,1e-08]
[1764560149882,40.79058971,126.96,126.95,1e-08]
[1764560151010,23.82172571,126.96,126.95,1e-08]
[1764560151192,24.48172571,126.96,126.95,1e-08]
[1764560152900,7.87552657,126.98,126.95,13.14522919]
[1764560153102,7.87552657,126.98,126.96,12.44522918]
[1764560153308,7.87552657,126.98,126.96,13.14522918]
[1764560154093,7.87463579,126.99,126.96,13.14522918]
[1764560154513,3.5,126.98,126.96,13.14522918]
[1764560155410,3.5,126.98,126.97,0.7]
[1764560155725,3.5,126.98,126.97,13.14522918]
[1764560156015,3.5,126.98,126.97,0.7]
[1764560156517,3.5,126.98,126.97,13.14522918]
[1764560156695,16.968864,127.01,126.97,13.14522918]
[1764560156890,11.37429626,127.0,126.98,0.66]
[1764560157105,12.44522918,127.04,126.99,12.44522918]
[1764560157290,12.44522918,127.02,126.98,12.44522918]
[1764560157498,15.94522918,127.01,126.97,12.44522918]
[1764560157706,15.94522918,127.01,126.96,0.66]
[1764560157707,12.44522918,127.0,126.96,13.10522918]
[1764560158023,3.5,126.99,126.96,13.10522918]
[1764560158414,11.37497333,126.99,126.96,13.10522918]
[1764560158599,0.66,126.98,126.95,1e-08]
[1764560158800,13.10522918,126.98,126.95,1e-08]
[1764560159298,16.60522918,126.97,126.95,1e-08]
[1764560159818,3.5,126.97,126.95,1e-08]
[1764560160001,12.44522918,126.98,126.95,1e-08]
[1764560160205,3.5,126.97,126.95,1e-08]
[1764560160427,11.37629489,126.97,126.95,1e-08]
[1764560160916,43.94561226,126.99,126.95,7.95015878]
[1764560161119,7.87525594,126.98,126.96,8.61015877]
[1764560161312,7.87525594,126.98,126.97,0.66]
[1764560161998,7.87525594,126.98,126.96,7.95015877]
[1764560162203,7.87525594,126.98,126.96,8.61015877]
[1764560162405,7.87525594,126.98,126.96,0.66]
[1764560162703,7.87525594,126.98,126.95,7.95015878]
[1764560162704,4.16,126.97,126.95,1e-08]
[1764560163227,12.11015877,126.97,126.95,61.50000001]
[1764560164134,4.16,126.97,126.95,1e-08]
[1764560164728,7.87649653,126.96,126.95,1e-08]
[1764560168830,8.53649653,126.96,126.95,1e-08]
[1764560169119,15.8266553,126.96,126.95,0.05550001]
[1764560169725,16.4866553,126.96,126.95,0.05550001]
[1764560170735,7.87649653,126.96,126.95,0.05550001]
[1764560170942,11.37649653,126.96,126.95,0.05550001]
[1764560174024,28.29829863,126.98,126.95,8.66565878]
[1764560174025,3.5,126.97,126.95,8.66565878]
[1764560175033,3.5,126.97,126.95,0.05550001]
[1764560175250,8.61015877,126.96,126.95,0.05550001]
[1764560175434,17.42010369,126.96,126.95,0.05550001]
[1764560175933,25.29660022,126.96,126.95,0.05550001]
[1764560176717,11.37649653,126.96,126.95,0.05550001]
[1764560177115,19.3266553,126.96,126.95,0.05550001]
[1764560177422,28.79660022,126.96,126.95,0.05550001]
[1764560177616,19.9866553,126.96,126.95,0.05550001]
[1764560178022,11.37649653,126.96,126.95,0.05550001]
[1764560178523,7.87649653,126.96,126.95,0.05550001]
[1764560178716,11.37649653,126.96,126.95,0.05550001]
[1764560179431,11.37649653,126.96,126.95,0.71550001]
[1764560180411,11.37649653,126.96,126.95,0.05550001]
[1764560181139,11.37649653,126.96,126.95,61.55550001]
[1764560181720,19.9866553,126.96,126.95,61.55550001]
[1764560182445,19.9866553,126.96,126.95,0.05550001]
[1764560182446,28.79660022,126.96,126.95,0.05550001]
[1764560182630,25.11880892,126.93,126.87,0.66]
[1764560182833,7.95015877,126.91,126.87,0.66]
[1764560183039,3.5,126.9,126.87,0.66]
[1764560183223,4.16,126.9,126.85,7.98316976]
[1764560183546,7.95015877,126.88,126.85,0.76]
[1764560183716,11.38265592,126.87,126.86,0.66]
[1764560184715,11.38265592,126.87,126.86,8.61015877]
[1764560185038,7.88157176,126.88,126.86,8.61015877]
[1764560185241,7.88157176,126.88,126.87,8.62015877]
[1764560186037,3.5,126.89,126.87,8.62015877]
[1764560186340,7.88061366,126.9,126.88,8.62015877]
[1764560186516,7.88061366,126.9,126.88,0.67]
[1764560186715,7.88061366,126.9,126.85,7.98282844]
[1764560186716,7.88061366,126.9,126.87,7.95015877]
[1764560186939,3.5,126.89,126.87,7.95015877]
[1764560187134,3.5,126.89,126.86,8.62015877]
[1764560187321,0.71,126.88,126.85,0.1]
[1764560187518,43.89002927,126.9,126.85,0.77]
[1764560187722,0.71,126.99,126.89,7.95015877]
[1764560187932,0.71,126.99,126.91,8.80994492]
[1764560188142,0.71,126.99,126.96,7.95015877]
[1764560188326,4.21,126.99,126.96,7.95015877]
[1764560188523,4.21,126.99,126.94,0.67]
[1764560188727,0.71,126.98,126.95,7.95015877]
[1764560189044,12.08517679,126.99,126.95,7.95015877]
[1764560189248,12.08517679,126.99,126.96,7.95015877]
[1764560191145,12.08517679,126.99,126.95,8.62015877]
[1764560191345,4.21,126.99,126.96,7.95015877]
[1764560191849,12.08470892,126.99,126.96,7.95015877]
[1764560192224,4.21,126.99,126.96,7.95015877]
[1764560192719,8.80994492,127.03,126.97,8.62015877]
[1764560192720,0.71,127.03,126.97,8.62015877]
[1764560192939,0.71,127.05,127.01,7.95015877]
[1764560193838,8.58111074,127.05,127.01,7.95015877]
[1764560194351,7.87111074,127.05,127.02,7.95015877]
[1764560194658,3.5,127.06,127.02,7.95015877]
[1764560194953,4.21,127.06,127.02,8.62015877]
[1764560195253,0.71,127.05,127.02,7.95015877]
[1764560195430,0.71,127.05,127.01,7.95015877]
[1764560195949,7.87153652,127.04,127.01,8.62015877]
[1764560196526,7.87153652,127.04,127.02,7.95015877]
[1764560197229,3.5,127.06,127.03,7.95015877]
[1764560197443,11.37051804,127.06,127.03,8.62015877]
[1764560197645,3.5,127.06,127.03,8.62015877]
[1764560197851,11.37034089,127.06,127.03,8.62015877]
[1764560198149,3.5,127.06,127.03,8.62015877]
[1764560198727,11.37029763,127.06,127.03,8.62015877]
[1764560198927,11.37029763,127.06,126.98,19.68751069]
[1764560198928,8.66015877,127.05,126.98,8.80994492]
[1764560199138,8.66015877,127.05,127.0,8.62015877]
[1764560199456,0.71,127.05,127.01,7.95015877]
[1764560199844,7.87153652,127.04,127.0,8.62015877]
[1764560200250,8.58153652,127.04,127.0,7.95015877]
[1764560200551,0.71,127.03,126.98,8.54484408]
[1764560200750,4.21,127.03,126.99,7.95015877]
[1764560200930,16.308864,127.01,126.99,8.62015877]
[1764560201455,16.308864,127.01,126.99,7.95015877]
[1764560201660,16.308864,127.01,127.0,8.62015877]
[1764560201844,16.308864,127.05,127.01,7.87339579]
[1764560202032,16.308864,127.05,127.03,7.95015877]
[1764560202445,16.308864,127.05,127.04,8.62015877]
[1764560202646,7.86967813,127.07,127.04,8.62015877]
[1764560202841,7.86967813,127.07,127.05,0.67]
[1764560203154,7.86967813,127.07,127.02,7.95015877]
[1764560203155,0.71,127.06,127.02,7.95015877]
[1764560203655,52.51289622,127.07,127.02,8.62015877]
[1764560203859,0.71,127.06,127.02,8.62015877]
[1764560204053,7.87091696,127.05,127.02,0.67]
[1764560204356,7.87091696,127.05,127.02,8.62015877]
[1764560204558,0.71,127.04,127.0,0.67]
[1764560204741,16.308864,127.04,127.01,7.95015877]
[1764560204937,16.308864,127.04,127.0,70.12015877]
[1764560205136,17.018864,127.04,127.0,70.12015877]
[1764560206133,7.87215618,127.03,127.0,69.45015877]
[1764560206332,11.45015877,127.02,126.97,7.95015877]
[1764560206647,11.45015877,127.02,126.98,8.62015877]
[1764560207039,11.45015877,127.02,126.98,7.95015877]
[1764560207242,3.5,127.02,126.99,0.67]
[1764560207973,7.87339579,127.01,126.99,0.67]
[1764560210050,16.53355456,127.01,126.96,0.67]
[1764560210362,16.53355456,127.01,126.96,8.62015877]
[1764560210741,11.37302564,127.02,126.99,7.95015877]
[1764560210942,7.87302564,127.02,126.98,7.95015877]
[1764560211142,0.71,127.05,126.97,0.67]
[1764560211338,11.45015877,127.04,127.0,7.95015877]
[1764560211543,27.75902277,127.04,127.0,7.95015877]
[1764560211759,28.46902277,127.04,127.0,8.62015877]
[1764560212065,7.87215618,127.03,127.0,8.62015877]
[1764560212438,28.39062732,127.04,127.0,16.49400284]
[1764560212642,12.08176332,127.04,127.0,16.49400284]
[1764560213171,11.37176332,127.04,127.01,7.95015877]
[1764560213376,7.87055193,127.06,127.03,7.95015877]
[1764560213545,7.87055193,127.06,127.02,8.62015877]
[1764560213851,8.66015877,127.05,127.0,8.62015877]
[1764560214042,7.87153652,127.04,127.01,7.95015877]
[1764560214242,7.87153652,127.04,127.01,8.62015877]
[1764560214856,0.2,127.09,127.03,7.95015877]
[1764560215044,27.73998436,127.09,127.06,7.95015877]
[1764560215561,44.04884836,127.09,127.06,8.62015877]
[1764560215770,27.73998436,127.09,127.06,8.62015877]
[1764560216457,8.06888514,127.09,127.06,8.62015877]
[1764560216762,16.308864,127.08,127.06,8.62015877]
[1764560217471,16.308864,127.08,127.06,0.67]
[1764560218271,24.1782661,127.08,127.06,0.67]
[1764560220447,24.8482661,127.08,127.05,7.95015877]
[1764560220650,24.8482661,127.08,127.04,15.82164543]
[1764560220856,24.8482661,127.08,127.04,16.48164543]
[1764560221070,24.1782661,127.08,127.05,8.61015877]
[1764560221967,0.2,127.09,127.07,7.95015877]
[1764560222170,0.2,127.09,127.08,7.95015877]
[1764560222468,8.06573597,127.14,127.08,12.42360873]
[1764560222669,0.2,127.14,127.13,12.42360873]
[1764560223271,7.86297762,127.18,127.13,20.6195727]
[1764560223476,7.86297762,127.18,127.14,12.55360873]
[1764560223862,7.86297762,127.18,127.14,12.42360873]
[1764560224376,8.53297762,127.18,127.14,12.42360873]
[1764560225376,8.53297762,127.18,127.13,7.86596397]
[1764560225579,8.53297762,127.18,127.14,12.42360873]
[1764560225997,7.86297762,127.18,127.14,12.42360873]
[1764560226290,8.06236296,127.19,127.15,7.9947267]
[1764560226493,8.06236296,127.19,127.15,20.41833543]
[1764560227086,0.2,127.19,127.15,16.80467162]
[1764560227268,0.2,127.19,127.15,29.22828035]
[1764560227780,0.2,127.19,127.15,7.8647267]
[1764560227979,0.87,127.19,127.15,7.8647267]
[1764560228290,0.87,127.19,127.14,8.80994492]
[1764560228291,0.67,127.18,127.14,7.86518771]
[1764560228463,0.67,127.18,127.14,20.28879644]
[1764560228464,13.09360873,127.18,127.14,20.28879644]
[1764560228861,0.87,127.16,127.13,15.92360873]
[1764560229254,13.09360873,127.15,127.1,11.36723711]
[1764560229458,0.67,127.15,127.12,12.42360873]
[1764560229957,0.67,127.15,127.11,12.42360873]
[1764560230370,0.67,127.15,127.12,12.42360873]
[1764560231384,0.67,127.15,127.11,12.42360873]
[1764560231680,0.67,127.15,127.11,20.29075957]
[1764560232158,8.53478405,127.15,127.11,20.29075957]
[1764560232578,0.67,127.14,127.11,20.29075957]
[1764560232772,0.67,127.15,127.12,12.42360873]
[1764560232978,8.06431195,127.16,127.12,12.42360873]
[1764560232979,8.06431195,127.16,127.13,12.42360873]
[1764560233288,8.73431195,127.16,127.13,12.42360873]
[1764560233465,0.87,127.16,127.13,12.42360873]
[1764560234077,0.67,127.15,127.12,12.42360873]
[1764560234274,0.87,127.16,127.12,12.42360873]
[1764560234478,0.2,127.16,127.11,7.86715084]
[1764560234700,12.42360873,127.14,127.09,12.42360873]
[1764560234872,12.42360873,127.12,127.07,3.5]
[1764560235068,12.42360873,127.11,127.06,12.42360873]
[1764560235274,13.09360873,127.11,127.06,12.42360873]
[1764560235469,13.09360873,127.1,127.05,12.42360873]
[1764560235670,12.42360873,127.1,127.05,12.42360873]
[1764560235982,0.67,127.09,127.05,12.42360873]
[1764560236174,13.09360873,127.09,127.05,12.42360873]
[1764560236491,20.96229972,127.09,127.05,20.29450854]
[1764560236789,20.96229972,127.09,127.05,20.29450764]
[1764560237281,0.67,127.11,127.07,12.42360873]
[1764560237474,4.17,127.11,127.07,12.42360873]
[1764560237680,0.67,127.11,127.08,12.42360873]
[1764560239163,16.308864,127.12,127.08,12.42360873]
[1764560239366,24.84561586,127.12,127.09,12.42360873]
[1764560239563,8.53675186,127.12,127.09,12.42360873]
[1764560240171,7.86675186,127.12,127.07,7.86952575]
[1764560240373,0.67,127.11,127.09,12.42360873]
[1764560241166,8.80994492,127.15,127.09,12.42360873]
[1764560241167,32.28538228,127.16,127.1,12.42360873]
[1764560241366,7.8647267,127.15,127.1,61.63]
[1764560241570,7.8647267,127.15,127.12,12.42360873]
[1764560241571,8.5347267,127.15,127.12,12.42360873]
[1764560241783,0.67,127.14,127.11,12.42360873]
[1764560243286,8.53535717,127.14,127.1,69.36746716]
[1764560243591,24.4589659,127.14,127.09,12.42360873]
[1764560243891,0.67,127.13,127.1,12.42360873]
[1764560244095,0.67,127.13,127.1,73.92360873]
[1764560245193,8.53602739,127.13,127.1,73.92360873]
[1764560245388,8.53602739,127.13,127.1,12.42360873]
[1764560245589,0.67,127.12,127.1,12.42360873]
[1764560245795,0.67,127.12,127.09,20.29183407]
[1764560247791,0.67,127.12,127.11,12.42360873]
[1764560248101,0.67,127.12,127.1,12.42360873]
[1764560248482,0.67,127.12,127.09,20.29183407]
[1764560248797,0.67,127.12,127.1,12.42360873]
[1764560249498,8.53702982,127.12,127.07,11.36908762]
[1764560249718,8.53702982,127.12,127.09,12.42360873]
[1764560250004,0.67,127.11,127.09,12.42360873]
[1764560251379,0.67,127.11,127.08,7.86876787]
[1764560251594,0.67,127.11,127.09,12.42360873]
[1764560252803,0.67,127.11,127.07,65.0]
[1764560253001,8.53730373,127.11,127.06,7.86972091]
[1764560253205,0.67,127.13,127.1,12.42360873]
[1764560253587,8.5360821,127.13,127.1,12.42360873]
[1764560253899,0.67,127.13,127.1,12.42360873]
[1764560254201,12.03554213,127.14,127.1,12.42360873]
[1764560254394,12.03554213,127.14,127.11,12.42360873]
[1764560254710,0.67,127.14,127.11,12.42360873]
[1764560254883,0.67,127.14,127.11,20.29050917]
[1764560256608,4.17,127.15,127.12,12.42360873]
[1764560256802,0.67,127.14,127.12,7.86657908]
[1764560257005,12.03473305,127.15,127.12,7.86657908]
[1764560257197,4.17,127.15,127.12,7.86657908]
[1764560257395,3.5,127.15,127.11,20.29070406]
[1764560257705,0.67,127.14,127.11,7.86709533]
[1764560258894,0.67,127.14,127.11,20.29070406]
[1764560259093,20.48794319,127.16,127.13,12.42360873]
[1764560259094,0.2,127.16,127.13,12.42360873]
[1764560259302,0.2,127.16,127.14,12.42360873]
[1764560259728,0.2,127.16,127.15,12.42360873]
[1764560260711,0.2,127.16,127.14,12.42360873]
[1764560260909,0.2,127.16,127.14,20.288871]
[1764560261418,0.2,127.16,127.15,12.42360873]
[1764560262215,0.2,127.16,127.14,7.86526227]
[1764560262522,0.2,127.16,127.15,12.42360873]
[1764560264519,0.87,127.16,127.14,7.86526227]
[1764560265016,0.87,127.16,127.14,20.288871]
[1764560267315,0.2,127.16,127.14,20.288871]
[1764560267821,0.87,127.16,127.14,20.288871]
[1764560269817,0.2,127.16,127.13,7.86579015]
[1764560270004,0.67,127.15,127.13,7.86579015]
[1764560270413,0.67,127.15,127.12,85.28998464]
[1764560270721,16.57360873,127.15,127.1,61.5]
[1764560270919,4.15,127.15,127.11,12.42360873]
[1764560271223,0.67,127.14,127.11,12.42360873]
[1764560271721,0.67,127.14,127.11,20.29069744]
[1764560272239,8.53541245,127.14,127.11,12.42360873]
[1764560272624,0.67,127.13,127.11,12.42360873]
[1764560272823,0.67,127.13,127.09,3.48]
[1764560273002,12.42360873,127.11,127.04,0.13]
[1764560273204,7.86843968,127.09,127.05,20.29414653]
[1764560273518,12.42360873,127.08,127.01,19.68324483]
[1764560273719,12.42360873,127.08,127.02,12.42360873]
[1764560273720,12.42360873,127.07,127.02,12.42360873]
[1764560273917,12.42360873,127.07,127.0,0.13]
[1764560273918,12.42360873,127.05,127.0,3.5]
[1764560274114,12.42360873,127.05,126.99,7.87439269]
[1764560274316,13.09360873,127.04,126.99,12.42360873]
[1764560274515,15.92360873,127.03,126.98,12.52360873]
[1764560274718,4.17,127.03,126.99,12.42360873]
[1764560274920,0.67,127.02,126.99,12.42360873]
[1764560275317,8.54282016,127.02,126.98,12.52360873]
[1764560275506,20.96642889,127.02,126.98,0.1]
[1764560275712,0.67,127.01,126.98,0.1]
[1764560275931,13.09360873,127.01,126.98,0.1]
[1764560276424,19.808864,127.03,126.98,0.1]
[1764560276725,0.68,127.01,126.98,12.52360873]
[1764560277024,0.68,127.01,126.98,20.39885183]
[1764560278022,0.68,127.01,126.99,12.42360873]
[1764560278326,0.68,127.01,126.98,20.39885183]
[1764560278515,0.68,127.01,126.98,12.52360873]
[1764560278716,0.68,127.01,126.98,0.1]
[1764560278717,20.97709581,127.01,126.98,0.1]
[1764560279026,8.55348708,127.01,126.98,61.6]
[1764560279204,0.68,127.0,126.98,61.6]
[1764560279629,0.68,127.0,126.98,74.02360873]
[1764560279829,0.68,127.0,126.98,81.89868007]
[1764560280014,0.68,127.02,126.99,12.42360873]
[1764560280210,0.68,127.02,127.0,12.42360873]
[1764560280412,7.87166302,127.04,127.0,73.92360873]
[1764560280616,0.68,127.05,127.0,61.63]
[1764560280816,0.68,127.04,127.01,12.42360873]
[1764560281444,7.87030821,127.06,127.02,12.55360873]
[1764560281609,0.68,127.05,127.03,12.42360873]
[1764560281807,0.68,127.05,127.01,7.87277681]
[1764560281808,0.68,127.05,127.01,61.5]
[1764560282010,0.68,127.05,127.02,12.42360873]
[1764560283216,15.92360873,127.04,126.99,12.42360873]
[1764560283417,7.87277594,127.02,126.98,0.1]
[1764560283628,7.87277594,127.02,126.98,12.52360873]
[1764560283931,0.68,127.01,126.98,12.52360873]
[1764560284631,4.18,127.03,126.99,7.94480164]
[1764560284828,19.99717926,127.03,126.99,7.94480164]
[1764560285133,19.99717926,127.03,126.98,7.97507521]
[1764560285134,0.68,127.02,126.98,7.97507521]
[1764560285334,8.5528076,127.02,126.98,0.1]
[1764560285722,0.68,127.01,126.98,8.04480164]
[1764560286429,0.68,127.01,126.99,7.94480164]
[1764560286607,7.8728076,127.02,126.99,7.94480164]
[1764560286932,7.87213613,127.04,127.01,7.94480164]
[1764560287137,8.55213613,127.04,127.01,7.94480164]
[1764560287634,0.68,127.03,127.01,7.94480164]
[1764560288139,8.55213613,127.04,127.01,7.94480164]
[1764560288352,0.68,127.07,127.03,7.94480164]
[1764560288519,0.68,127.06,127.04,7.94480164]
[1764560288714,0.68,127.06,127.03,69.44480164]
[1764560289339,8.62480164,127.06,127.03,61.5]
[1764560289514,7.87091696,127.05,127.03,61.5]
[1764560289842,3.5,127.04,127.03,61.5]
[1764560290146,4.18,127.04,127.01,7.94480164]
[1764560291118,0.68,127.03,127.01,7.94480164]
[1764560293335,8.55224691,127.03,127.01,7.94480164]
[1764560293543,8.55224691,127.03,127.0,69.44480164]
[1764560293739,7.87224691,127.03,127.0,61.5]
[1764560294039,8.55224691,127.03,127.0,69.44480164]
[1764560294342,8.55219055,127.03,127.0,69.44480164]
[1764560295546,0.68,127.02,127.0,69.44480164]
[1764560296244,8.55279172,127.02,126.98,77.41989229]
[1764560296430,0.68,127.02,126.98,77.41989229]
[1764560296620,0.68,127.01,126.99,7.94480164]
[1764560298532,0.68,127.01,126.99,15.81936088]
[1764560298923,0.68,127.01,126.99,7.94480164]
[1764560299741,8.55341787,127.01,126.98,0.1]
[1764560299917,7.94480164,126.99,126.96,0.1]
[1764560300117,7.94480164,126.98,126.96,0.1]
[1764560300343,7.87587619,126.97,126.96,0.1]
[1764560300542,8.55587619,126.97,126.96,0.1]
[1764560300953,12.05587619,126.97,126.96,0.1]
[1764560301920,12.05587619,126.97,126.91,19.69831978]
[1764560302128,7.94480164,126.94,126.89,27.64620629]
[1764560302322,15.82261579,126.94,126.9,7.94480164]
[1764560302530,35.99855447,126.97,126.93,7.94480164]
[1764560302724,7.87590218,126.97,126.9,12.30994492]
[1764560302929,7.87590218,126.97,126.94,7.94480164]
[1764560303248,8.55590218,126.97,126.91,0.33]